[Event "FIDE World Cup O12-B 2024"]
[Site "Batumi"]
[Date "2024.06.26"]
[Round "4.1"]
[White "Gabadadze, Gabriel"]
[Black "Qu, Haoming"]
[Result "1/2-1/2"]
[ECO "B01"]
[WhiteElo "1975"]
[BlackElo "1877"]
[Annotator "NA RC"]
[PlyCount "88"]
[EventDate "2024.06.23"]
[EventType "swiss"]
[EventCountry "GEO"]
[SourceTitle "playchess.com"]
[Source "ChessBase"]
[SourceQuality "1"]
[TimeControl "5400+30"]

1. e4 {[%emt 0:00:01]} d5 {[%emt 0:00:14]} 2. exd5 {[%emt 0:00:05]} Qxd5 {[%emt 0:00:04]} 3. Nc3 {[%emt 0:00:11]} Qd6 {[%emt 0:00:06]} 4. d4 {[%emt 0:00:05]} c6 {[%emt 0:00:31]} 5. Nf3 {[%emt 0:00:24]} Bf5 {[%emt 0:02:31]} 6. Ne5 {[%emt 0:04:04] B01: Scandinavian Defence.} Nd7 {[%emt 0:00:15]} 7. Nc4 {[%emt 0:03:06]} Qg6 {[%emt 0:00:30]} 8. Ne3 {[%emt 0:01:56]} Ngf6 {[%emt 0:00:38]} 9. Nxf5 {[%emt 0:04:20]} Qxf5 {[%emt 0:00:03]} 10. Bd3 {[%emt 0:01:38]} Qa5 {[%emt 0:00:18]} 11. O-O {[%emt 0:02:09]} e6 {[%emt 0:01:52]} 12. Ne4 {[%emt 0:05:54]} Nxe4 {[%emt 0:00:55]} 13. Bxe4 {[%emt 0:00:02]} Nf6 {[%emt 0:00:12]} 14. Bf3 {[%emt 0:01:27]} Bd6 {[%emt 0:00:33]} 15. c3 {[%emt 0:02:39]} O-O {[%emt 0:00:23]} 16. Re1 {[%emt 0:03:30]} Rfe8 {[%emt 0:06:21]} 17. Be3 {[%emt 0:08:18]} Nd5 {[%emt 0:19:13]} 18. Bd2 {[%emt 0:02:23]} Qc7 {[%emt 0:00:51]} 19. g3 {[%emt 0:02:09]} Nf6 {[%emt 0:05:27]} 20. Bg5 {[%emt 0:02:07]} Nd7 {[%emt 0:01:25]} 21. Qd3 {[%emt 0:03:42]} h6 {[%emt 0:02:16]} 22. Be3 {[%emt 0:02:13]} Rad8 {[%emt 0:00:53]} 23. Rad1 {[%emt 0:01:26]} Nf6 {[%emt 0:01:24]} 24. Kg2 {[%emt 0:02:21]} a6 {[%emt 0:10:05]} 25. Qc2 {[%emt 0:03:29]} Qa5 {[%emt 0:01:57]} 26. a3 $14 {[%emt 0:02:15]} Bf8 {[%emt 0:17:36]} 27. c4 {[%emt 0:06:28]} Qc7 {[%emt 0:05:57]} 28. Qb3 {[%emt 0:04:27]} Rd7 {[%emt 0:01:16]} 29. Qc3 {[%emt 0:03:54]} e5 {[%emt 0:04:26]} 30. dxe5 {[%emt 0:01:27]} Rxd1 {[%emt 0:01:27]} 31. Rxd1 {[%emt 0:00:38]} Qxe5 {[%emt 0:00:03]} 32. Qb3 {[%emt 0:02:14]} Qc7 {[%emt 0:00:49]} 33. Bf4 {[%emt 0:01:20]} Qc8 {[%emt 0:00:23]} 34. Qb6 {[%emt 0:01:38]} g5 {[%emt 0:03:33]} 35. Be3 {[%emt 0:01:15]} Bg7 {[%emt 0:00:24]} 36. Qb3 {[%emt 0:02:53]} Ng4 {[%emt 0:04:56]} 37. Bd4 {[%emt 0:02:40]} Ne5 {[%emt 0:01:23]} 38. Bxe5 {[%emt 0:00:29]} Rxe5 {[%emt 0:00:29]} 39. h3 {[%emt 0:01:32]} Qc7 {[%emt 0:02:42]} 40. Qd3 {[%emt 0:01:15]} Bf6 {[%emt 0:00:51]} 41. Bg4 {[%emt 0:01:41]} Kg7 {[%emt 0:00:27]} 42. Qf3 {[%emt 0:01:45]} Re7 {[%emt 0:01:10]} 43. b3 {[%emt 0:00:52]} Qe5 {[%emt 0:01:21]} 44. a4 {[%emt 0:01:42]} a5 {[%emt 0:04:20]} 1/2-1/2

[Event "FIDE World Cup O12-B 2024"]
[Site "Batumi"]
[Date "2024.06.26"]
[Round "4.2"]
[White "Kakavand, Ramtin"]
[Black "Batbaatar, Baatar"]
[Result "0-1"]
[ECO "B51"]
[WhiteElo "2059"]
[BlackElo "1724"]
[Annotator "NA RC"]
[PlyCount "76"]
[EventDate "2024.06.23"]
[EventType "swiss"]
[EventCountry "GEO"]
[SourceTitle "playchess.com"]
[Source "ChessBase"]
[SourceQuality "1"]
[TimeControl "5400+30"]

1. e4 {[%emt 0:00:02]} c5 {[%emt 0:00:03]} 2. Nf3 {[%emt 0:00:05]} d6 {[%emt 0:00:04]} 3. Bb5+ {[%emt 0:00:05]} Nd7 {[%emt 0:00:07]} 4. a4 {[%emt 0:00:01]} a6 {[%emt 0:00:08]} 5. Be2 {[%emt 0:00:01]} Ngf6 {[%emt 0:00:07]} 6. Nc3 {[%emt 0:00:00] B51: Sicilian: Moscow Variation (3 Bb5+) without 3...Bd7.} b6 {[%emt 0:00:14]} 7. d4 {[%emt 0:00:23]} cxd4 {[%emt 0:00:07]} 8. Nxd4 {[%emt 0:00:32]} Bb7 {[%emt 0:00:14]} 9. f3 {[%emt 0:01:01]} e6 {[%emt 0:00:19]} 10. O-O {[%emt 0:04:36]} Be7 {[%emt 0:00:55]} 11. Re1 {[%emt 0:02:38]} O-O {[%emt 0:04:16]} 12. Bf1 {[%emt 0:02:52]} Nc5 {[%emt 0:05:10]} 13. Be3 {[%emt 0:04:09]} Qc7 {[%emt 0:01:26]} 14. Qd2 {[%emt 0:14:39]} Rac8 {[%emt 0:00:58]} 15. Bf2 {[%emt 0:11:20]} h6 {[%emt 0:04:39]} 16. Rad1 {[%emt 0:01:35]} Rfd8 {[%emt 0:04:01]} 17. Qc1 {[%emt 0:02:53]} Qb8 {[%emt 0:04:18]} 18. Qa1 {[%emt 0:16:32]} Qa8 {[%emt 0:03:22]} 19. Nb1 {[%emt 0:05:52]} Bf8 {[%emt 0:05:18]} 20. Nd2 {[%emt 0:02:20]} Ncd7 {[%emt 1:04:44]} 21. c4 {[%emt 0:00:43]} Qb8 {[%emt 0:00:00]} 22. a5 {[%emt 0:06:34]} d5 {[%emt 0:00:00]} 23. axb6 {[%emt 0:02:23]} dxe4 {[%emt 0:00:00]} 24. fxe4 {[%emt 0:00:55]} Ng4 $17 {[%emt 0:00:00]} 25. Bg3 {[%emt 0:05:11]} Bd6 {[%emt 0:00:00]} 26. Bxd6 {[%emt 0:07:22]} Qxd6 {[%emt 0:00:00]} 27. N2f3 {[%emt 0:00:01]} Qxb6 {[%emt 0:00:00]} 28. h3 {[%emt 0:00:30]} Nge5 {[%emt 0:00:00]} 29. Kh1 {[%emt 0:01:22]} Nxc4 {[%emt 0:00:00]} 30. Bxc4 {[%emt 0:00:25]} Rxc4 {[%emt 0:00:00]} 31. b3 {[%emt 0:00:06]} Rcc8 {[%emt 0:00:00]} 32. Qb1 {[%emt 0:04:51]} Ne5 {[%emt 0:00:00]} 33. Nxe5 {[%emt 0:01:01]} Rxd4 {[%emt 0:00:00]} 34. Nc4 {[%emt 0:00:09]} Qc5 {[%emt 0:00:00]} 35. Rxd4 {[%emt 0:03:09]} Qxd4 {[%emt 0:00:00]} 36. e5 {[%emt 0:00:06]} Bd5 {[%emt 0:00:00]} 37. Rd1 {[%emt 0:01:26]} Qf2 {[%emt 0:00:00]} 38. Rg1 {[%emt 0:00:14]} Qg3 {[%emt 0:00:00]} 0-1

[Event "FIDE World Cup O12-B 2024"]
[Site "Batumi"]
[Date "2024.06.26"]
[Round "4.3"]
[White "Aadik Theophane Lenin"]
[Black "Diaz Guerrero, Jesus Daniel"]
[Result "1-0"]
[ECO "D38"]
[WhiteElo "1852"]
[BlackElo "2032"]
[Annotator "NA RC"]
[PlyCount "91"]
[EventDate "2024.06.23"]
[EventType "swiss"]
[EventCountry "GEO"]
[SourceTitle "playchess.com"]
[Source "ChessBase"]
[SourceQuality "1"]
[TimeControl "5400+30"]

1. d4 {[%emt 0:00:29]} d5 {[%emt 0:00:35]} 2. c4 {[%emt 0:00:07]} e6 {[%emt 0:00:05]} 3. Nf3 {[%emt 0:00:04]} Nf6 {[%emt 0:00:35]} 4. Nc3 {[%emt 0:00:07]} Bb4 {[%emt 0:00:09]} 5. Bg5 {[%emt 0:00:07]} h6 {[%emt 0:00:16]} 6. Bxf6 {[%emt 0:00:04]} Qxf6 {[%emt 0:00:06]} 7. e3 {[%emt 0:00:03]} O-O {[%emt 0:06:35]} 8. Rc1 {[%emt 0:00:19]} dxc4 {[%emt 0:01:19]} 9. Bxc4 {[%emt 0:00:05]} c5 {[%emt 0:00:49]} 10. O-O {[%emt 0:01:24]} cxd4 {[%emt 0:00:26] D38: Queen's Gambit Declined: Ragozin Defence (4 Nf3 Bb4).} 11. Ne4 {[%emt 0:00:09]} Qe7 {[%emt 0:06:08]} 12. exd4 {[%emt 0:00:59]} Bd7 {[%emt 0:07:42]} 13. Rc2 {[%emt 0:04:02]} (13. Qd3 $14) 13... Bc6 {[%emt 0:07:00]} 14. Re2 {[%emt 0:00:53]} Rd8 {[%emt 0:06:17]} 15. a3 {[%emt 0:03:44]} Ba5 {[%emt 0:12:40]} 16. b4 {[%emt 0:00:16]} (16. Qc2 $11) 16... Bb6 {[%emt 0:04:57]} 17. Rfe1 {[%emt 0:00:08]} Qc7 {[%emt 0:03:58]} 18. Qd3 {[%emt 0:04:03]} Nd7 {[%emt 0:01:12]} 19. Rc2 $17 {[%emt 0:37:29]} Bxe4 {[%emt 0:14:12]} 20. Rxe4 {[%emt 0:02:34]} Qd6 {[%emt 0:00:10]} 21. Rce2 {[%emt 0:02:39]} Nf8 {[%emt 0:00:13]} 22. h4 {[%emt 0:03:30]} Rac8 {[%emt 0:07:43]} 23. h5 {[%emt 0:08:27]} a6 {[%emt 0:05:43]} 24. Rg4 {[%emt 0:04:07]} Ba7 {[%emt 0:03:31]} 25. Ne5 {[%emt 0:02:05]} Rc7 {[%emt 0:05:23]} 26. Rd2 {[%emt 0:08:45]} b5 {[%emt 0:00:36]} 27. Bb3 {[%emt 0:00:31]} Rc1+ {[%emt 0:02:26]} 28. Kh2 {[%emt 0:00:27]} f6 {[%emt 0:00:17]} 29. Qg3 {[%emt 0:00:05]} Rc7 {[%emt 0:00:12]} 30. d5 {[%emt 0:06:15]} Re7 {[%emt 0:03:42]} 31. Nc6 {[%emt 0:00:35]} Bb8 {[%emt 0:00:26]} 32. Qxd6 {[%emt 0:01:01]} Bxd6+ {[%emt 0:00:18]} 33. g3 {[%emt 0:00:05]} f5 {[%emt 0:00:18]} 34. Nxe7+ {[%emt 0:00:19]} Bxe7 {[%emt 0:00:05]} 35. Rgd4 {[%emt 0:00:14]} exd5 {[%emt 0:00:45]} 36. Rxd5 {[%emt 0:00:07]} Rxd5 {[%emt 0:00:42]} 37. Bxd5+ {[%emt 0:00:04]} Kh7 {[%emt 0:00:21]} 38. Bb7 {[%emt 0:00:05]} Bg5 {[%emt 0:00:38]} 39. f4 {[%emt 0:00:31]} Bf6 {[%emt 0:00:10]} 40. Bxa6 {[%emt 0:00:04]} g5 {[%emt 0:00:18]} 41. hxg6+ {[%emt 0:00:06]} Kxg6 {[%emt 0:00:05]} 42. Bxb5 {[%emt 0:00:11]} h5 {[%emt 0:00:05]} 43. Be8+ {[%emt 0:00:06]} Kh6 {[%emt 0:00:08]} 44. b5 {[%emt 0:00:10]} h4 {[%emt 0:00:31]} 45. b6 {[%emt 0:00:07]} hxg3+ {[%emt 0:00:26]} 46. Kxg3 {[%emt 0:00:02]} 1-0

[Event "FIDE World Cup O12-B 2024"]
[Site "Batumi"]
[Date "2024.06.26"]
[Round "4.4"]
[White "Tatvidze, Davit"]
[Black "Ibrahimli, Suat"]
[Result "0-1"]
[ECO "A34"]
[WhiteElo "2000"]
[BlackElo "1852"]
[Annotator "NA RC"]
[PlyCount "106"]
[EventDate "2024.06.23"]
[EventType "swiss"]
[EventCountry "GEO"]
[SourceTitle "playchess.com"]
[Source "ChessBase"]
[SourceQuality "1"]
[TimeControl "5400+30"]

1. c4 {[%emt 0:00:03]} c5 {[%emt 0:00:06]} 2. Nc3 {[%emt 0:00:04]} Nf6 {[%emt 0:00:05]} 3. g3 {[%emt 0:00:09]} d5 {[%emt 0:00:03]} 4. cxd5 {[%emt 0:00:08]} Nxd5 {[%emt 0:00:05]} 5. Bg2 {[%emt 0:00:06]} Nc7 {[%emt 0:00:04]} 6. Nf3 {[%emt 0:00:29]} Nc6 {[%emt 0:00:08]} 7. O-O {[%emt 0:00:49]} e5 {[%emt 0:00:04]} 8. d3 {[%emt 0:00:43]} Be7 {[%emt 0:00:44]} 9. Be3 {[%emt 0:03:24]} Be6 {[%emt 0:01:25]} 10. Qd2 {[%emt 0:05:12]} (10. Rc1 $11 {is superior.}) 10... f6 {[%emt 0:01:01]} 11. Rac1 {[%emt 0:19:46]} Rc8 {[%emt 0:01:32]} 12. b3 {[%emt 0:06:28]} O-O {[%emt 0:02:42]} 13. Rfd1 {[%emt 0:00:04]} Qd7 {[%emt 0:00:59]} 14. Qb2 {[%emt 0:03:59]} b6 {[%emt 0:10:48]} 15. Ne4 {[%emt 0:28:43]} h6 {[%emt 0:21:57]} 16. Ned2 {[%emt 0:01:59]} Nd5 {[%emt 0:01:34]} 17. Nc4 {[%emt 0:07:16]} b5 {[%emt 0:06:49]} 18. Na3 $17 {[%emt 0:00:35]} Nd4 {[%emt 0:00:38]} 19. Nh4 {[%emt 0:06:00]} Kh7 {[%emt 0:01:47]} 20. Nb1 {[%emt 0:03:24]} f5 {[%emt 0:01:27]} 21. Nf3 {[%emt 0:00:14]} Bf6 {[%emt 0:01:33]} 22. Qd2 {[%emt 0:02:00]} b4 {[%emt 0:03:48]} 23. Ne1 {[%emt 0:06:28]} a5 {[%emt 0:07:25]} 24. Bxd5 {[%emt 0:03:36]} Bxd5 {[%emt 0:00:51]} 25. f3 {[%emt 0:00:14]} Bxb3 {[%emt 0:01:18]} 26. axb3 {[%emt 0:00:44]} Nxb3 {[%emt 0:01:15]} 27. Qa2 {[%emt 0:00:07]} Nxc1 {[%emt 0:00:22]} 28. Rxc1 {[%emt 0:00:04]} Qb5 {[%emt 0:01:18]} 29. Nd2 {[%emt 0:01:11]} a4 {[%emt 0:01:12]} 30. Nc4 {[%emt 0:00:23]} Rc6 {[%emt 0:00:33]} 31. Ra1 {[%emt 0:00:34]} Ra8 {[%emt 0:00:53]} 32. Nd2 {[%emt 0:00:25]} e4 {[%emt 0:01:29]} 33. Rb1 {[%emt 0:00:11]} exf3 {[%emt 0:31:05]} 34. Nexf3 {[%emt 0:00:33]} Qb7 {[%emt 0:00:00]} 35. Nc4 {[%emt 0:00:56]} b3 {[%emt 0:00:00]} 36. Qa3 {[%emt 0:00:18]} Qb4 {[%emt 0:00:00]} 37. Nfd2 {[%emt 0:00:36]} Re8 {[%emt 0:00:00]} 38. Qc1 {[%emt 0:00:30]} Rxe3 {[%emt 0:00:00]} 39. Nxe3 {[%emt 0:00:06]} Bd4 {[%emt 0:00:00]} 40. Ndc4 {[%emt 0:00:26]} b2 {[%emt 0:00:00]} 41. Nxb2 {[%emt 0:01:10]} Rb6 {[%emt 0:00:00]} 42. Kg2 {[%emt 0:00:35]} Bxb2 {[%emt 0:00:00]} 43. Qf1 {[%emt 0:00:13]} Rf6 {[%emt 0:00:00]} 44. Nd5 {[%emt 0:01:35]} Qb7 {[%emt 0:00:00]} 45. e4 {[%emt 0:00:00]} Rf7 {[%emt 0:00:00]} 46. Qe2 {[%emt 0:00:00]} a3 {[%emt 0:00:00]} 47. Kh3 {[%emt 0:00:51]} Qd7 {[%emt 0:00:00]} 48. Kg2 {[%emt 0:00:19]} fxe4 {[%emt 0:00:00]} 49. dxe4 {[%emt 0:00:09]} Bd4 {[%emt 0:00:00]} 50. Nf4 {[%emt 0:00:56]} g5 {[%emt 0:00:00]} 51. Nh3 {[%emt 0:00:30]} Qe6 {[%emt 0:00:00]} 52. Re1 {[%emt 0:00:40]} a2 {[%emt 0:00:00]} 53. Qh5 {[%emt 0:00:12]} Kg7 {[%emt 0:00:00]} 0-1

[Event "FIDE World Cup O12-B 2024"]
[Site "Batumi"]
[Date "2024.06.26"]
[Round "4.5"]
[White "Zhang, Haoxuan(Zj)"]
[Black "Chia, Yu Zhe Ashton"]
[Result "1-0"]
[ECO "B22"]
[WhiteElo "1907"]
[BlackElo "2229"]
[Annotator "RC"]
[PlyCount "109"]
[EventDate "2024.06.23"]
[EventType "swiss"]
[EventCountry "GEO"]
[SourceTitle "playchess.com"]
[Source "ChessBase"]
[SourceQuality "1"]
[TimeControl "5400+30"]

1. e4 {[%emt 0:00:01]} c5 {[%emt 0:00:04]} 2. Nf3 {[%emt 0:00:04]} g6 {[%emt 0:00:03]} 3. c3 {[%emt 0:00:04]} d5 {[%emt 0:00:30]} 4. exd5 {[%emt 0:00:01]} Qxd5 {[%emt 0:00:06]} 5. d4 {[%emt 0:00:05]} cxd4 {[%emt 0:00:37]} 6. cxd4 {[%emt 0:00:06]} Bg7 {[%emt 0:00:43]} 7. Nc3 {[%emt 0:01:32]} Qd8 {[%emt 0:01:22]} 8. Bc4 {[%emt 0:01:45]} Nf6 {[%emt 0:02:06]} 9. O-O {[%emt 0:01:25]} O-O {[%emt 0:00:17]} 10. h3 {[%emt 0:02:31]} Bf5 {[%emt 0:00:28]} 11. Re1 {[%emt 0:02:51]} Nbd7 {[%emt 0:02:28]} 12. Bb3 {[%emt 0:14:53]} Nb6 {[%emt 0:01:56]} 13. Bg5 {[%emt 0:03:58]} h6 {[%emt 0:02:21]} 14. Bh4 {[%emt 0:00:18]} g5 {[%emt 0:05:44]} 15. Bg3 {[%emt 0:01:06]} e6 {[%emt 0:01:42]} 16. Nb5 {[%emt 0:04:20]} Ne4 {[%emt 0:03:29]} 17. Be5 {[%emt 0:00:35]} a6 {[%emt 0:05:42]} 18. Nc3 {[%emt 0:04:18]} Nf6 {[%emt 0:09:19]} 19. Bc2 {[%emt 0:02:02]} Bxc2 {[%emt 0:01:14]} 20. Qxc2 {[%emt 0:00:02]} Rc8 {[%emt 0:00:19]} 21. Qb3 {[%emt 0:01:42]} Rc6 {[%emt 0:03:00]} 22. Rad1 {[%emt 0:03:17]} Nbd5 {[%emt 0:15:35]} 23. Na4 {[%emt 0:01:31]} b6 {[%emt 0:03:22]} 24. Nc3 {[%emt 0:05:36]} Nxc3 {[%emt 0:01:47]} 25. bxc3 {[%emt 0:00:05]} Qd5 {[%emt 0:00:16]} 26. Qb2 {[%emt 0:04:34]} Rfc8 {[%emt 0:00:38]} 27. c4 {[%emt 0:06:56]} Rxc4 {[%emt 0:00:55]} 28. Qxb6 {[%emt 0:00:09]} R4c6 {[%emt 0:02:21]} 29. Qb1 {[%emt 0:00:58]} Rc2 {[%emt 0:02:08]} 30. Rd2 {[%emt 0:00:46]} Rxd2 {[%emt 0:03:14]} 31. Nxd2 {[%emt 0:00:02]} Nh5 {[%emt 0:01:58]} 32. Ne4 {[%emt 0:02:27]} f6 {[%emt 0:09:43]} 33. Bh2 {[%emt 0:01:48]} f5 {[%emt 0:02:23]} 34. Nc5 {[%emt 0:01:45]} Rc6 {[%emt 0:04:40]} 35. Qb8+ {[%emt 0:02:16]} Kh7 {[%emt 0:00:43]} 36. Be5 {[%emt 0:00:17]} Nf4 {[%emt 0:02:58]} 37. Bxf4 {[%emt 0:00:51]} gxf4 {[%emt 0:00:02]} 38. Qxf4 {[%emt 0:08:42]} Bxd4 {[%emt 0:00:52]} 39. Nd3 {[%emt 0:05:33]} Bc3 {[%emt 0:03:11]} 40. Nb4 {[%emt 0:01:56]} Qd6 {[%emt 0:01:03]} 41. Re4 {[%emt 0:01:27]} fxe4 {[%emt 0:00:57]} 42. Qxe4+ {[%emt 0:00:04]} Kg7 {[%emt 0:00:53]} 43. Nxc6 {[%emt 0:00:05]} Bf6 {[%emt 0:01:30]} 44. Nb4 {[%emt 0:00:50]} Qd1+ {[%emt 0:00:42]} 45. Kh2 {[%emt 0:00:01]} Qa4 {[%emt 0:01:20]} 46. Qb7+ {[%emt 0:01:35]} Kg6 {[%emt 0:01:57]} 47. g3 {[%emt 0:01:37]} a5 {[%emt 0:00:42]} 48. Nd3 {[%emt 0:00:05]} e5 {[%emt 0:02:05]} 49. Qd5 {[%emt 0:00:44]} Kf5 {[%emt 0:01:04]} 50. Nf4 {[%emt 0:02:28]} Qd4 {[%emt 0:01:43]} 51. Qe6+ {[%emt 0:00:08]} Ke4 {[%emt 0:00:05]} 52. Qc6+ {[%emt 0:00:09]} Kf5 {[%emt 0:00:16]} 53. Qc8+ {[%emt 0:00:05]} Ke4 {[%emt 0:00:19]} 54. Qc2+ {[%emt 0:00:11]} Kf3 {[%emt 0:00:41]} 55. Qe2# {[%emt 0:00:05]} 1-0

[Event "FIDE World Cup O12-B 2024"]
[Site "Batumi"]
[Date "2024.06.26"]
[Round "4.6"]
[White "Golikov, Ivan"]
[Black "Pirtac, Alexandru"]
[Result "1-0"]
[ECO "A45"]
[WhiteElo "1723"]
[BlackElo "1977"]
[Annotator "NA RC"]
[PlyCount "91"]
[EventDate "2024.06.23"]
[EventType "swiss"]
[EventCountry "GEO"]
[SourceTitle "playchess.com"]
[Source "ChessBase"]
[SourceQuality "1"]
[TimeControl "5400+30"]

1. d4 {[%emt 0:00:01]} Nf6 {[%emt 0:00:50]} 2. Bg5 {[%emt 0:00:05]} g6 {[%emt 0:00:54]} 3. Bxf6 {[%emt 0:00:14]} exf6 {[%emt 0:00:02]} 4. c4 {[%emt 0:00:18]} Bg7 {[%emt 0:00:32]} 5. Nc3 {[%emt 0:00:18]} f5 {[%emt 0:01:26]} 6. e3 {[%emt 0:02:30] A45: Trompowsky Attack.} O-O {[%emt 0:00:29]} 7. g3 {[%emt 0:00:23]} c5 {[%emt 0:03:40]} 8. Nge2 {[%emt 0:05:08]} cxd4 {[%emt 0:00:57]} 9. exd4 {[%emt 0:09:14]} Nc6 {[%emt 0:03:00]} 10. Qd3 {[%emt 0:06:12] [#]} f4 {[%emt 0:08:13]} 11. O-O-O {[%emt 0:10:02] [#]} d6 {[%emt 0:04:53]} (11... d5 $1 $17 12. cxd5 Nb4) 12. Bg2 {[%emt 0:04:33]} Bf5 {[%emt 0:04:06]} 13. Be4 {[%emt 0:04:37]} Nb4 {[%emt 0:00:41]} 14. Qf3 {[%emt 0:02:28]} Bxe4 {[%emt 0:01:04]} 15. Qxe4 {[%emt 0:00:16]} Re8 {[%emt 0:06:07]} 16. Qxf4 {[%emt 0:03:25]} Nxa2+ {[%emt 0:00:24]} 17. Nxa2 {[%emt 0:00:40]} Rxe2 {[%emt 0:00:15]} 18. Nc3 {[%emt 0:01:01]} Re6 {[%emt 0:01:01]} 19. Qf3 {[%emt 0:10:45]} a5 {[%emt 0:03:41]} 20. Kb1 {[%emt 0:05:23]} (20. Rhe1 $1 $11) 20... a4 {[%emt 0:07:36]} 21. Nb5 {[%emt 0:04:40]} Rf6 {[%emt 0:03:21]} 22. Qxb7 {[%emt 0:02:33] [#]} a3 $15 {[%emt 0:02:27]} ({Much worse is} 22... Rxf2 $6 23. Rhf1 Rb8 (23... Rxh2 $2 {loses.} 24. Rxf7 Kh8 25. Rxg7 $18) 24. Qa7 $11) (22... d5 $1 $17 23. Qxd5 Qxd5 24. cxd5 Rb8) 23. Nxa3 {[%emt 0:01:22]} Rxf2 {[%emt 0:00:57]} 24. Rhf1 {[%emt 0:01:46]} Rxf1 {[%emt 0:09:56]} 25. Rxf1 {[%emt 0:00:38]} Bxd4 {[%emt 0:00:20]} 26. Qxf7+ {[%emt 0:01:12]} Kh8 {[%emt 0:00:29]} 27. Qd5 {[%emt 0:02:29]} Bg7 {[%emt 0:03:55]} 28. Rf3 {[%emt 0:06:25]} Qe8 {[%emt 0:02:11]} 29. Rd3 {[%emt 0:03:00]} Rb8 {[%emt 0:01:55]} 30. Nb5 {[%emt 0:00:51]} Qe1+ {[%emt 0:00:46]} 31. Rd1 {[%emt 0:00:28]} Qb4 {[%emt 0:00:56]} 32. Rd2 {[%emt 0:02:01]} Rf8 {[%emt 0:01:18]} 33. Ka2 {[%emt 0:01:35]} Rb8 {[%emt 0:05:01]} 34. Kb1 {[%emt 0:01:10]} Rf8 {[%emt 0:03:54]} 35. Ka2 {[%emt 0:00:27]} h6 {[%emt 0:01:51]} 36. Qd3 {[%emt 0:01:34]} Rb8 {[%emt 0:03:02]} 37. Rc2 {[%emt 0:00:48]} Ra8+ {[%emt 0:06:27]} 38. Na3 {[%emt 0:00:12]} Kh7 {[%emt 0:01:00]} 39. h4 {[%emt 0:01:30]} Ra5 {[%emt 0:02:04]} 40. g4 {[%emt 0:00:58]} h5 {[%emt 0:00:36]} 41. gxh5 {[%emt 0:01:09]} Rxh5 {[%emt 0:00:10]} 42. Rg2 {[%emt 0:00:19]} Rh6 {[%emt 0:01:07]} 43. h5 {[%emt 0:00:21]} Kh8 {[%emt 0:00:36]} 44. hxg6 {[%emt 0:00:42]} Rh1 {[%emt 0:01:43]} 45. Re2 {[%emt 0:00:29]} Be5 {[%emt 0:02:01]} 46. Qf3 {[%emt 0:00:56]} 1-0

[Event "FIDE World Cup O12-B 2024"]
[Site "Batumi"]
[Date "2024.06.26"]
[Round "4.7"]
[White "Ambartsumyan, Yuri"]
[Black "Garakhanov, Shamsi"]
[Result "0-1"]
[ECO "E87"]
[WhiteElo "1750"]
[BlackElo "1884"]
[Annotator "NA RC"]
[PlyCount "96"]
[EventDate "2024.06.23"]
[EventType "swiss"]
[EventCountry "GEO"]
[SourceTitle "playchess.com"]
[Source "ChessBase"]
[SourceQuality "1"]
[TimeControl "5400+30"]

1. d4 {[%emt 0:00:02]} Nf6 {[%emt 0:00:03]} 2. c4 {[%emt 0:00:03]} g6 {[%emt 0:00:04]} 3. Nc3 {[%emt 0:00:03]} Bg7 {[%emt 0:00:10]} 4. e4 {[%emt 0:00:04]} d6 {[%emt 0:00:12]} 5. f3 {[%emt 0:00:03]} O-O {[%emt 0:00:27]} 6. Be3 {[%emt 0:00:04]} e5 {[%emt 0:00:58]} 7. d5 {[%emt 0:00:07]} Nbd7 {[%emt 0:02:11]} 8. Qd2 {[%emt 0:00:04]} Nc5 {[%emt 0:00:11]} 9. g4 {[%emt 0:01:45]} h5 {[%emt 0:04:03]} 10. gxh5 {[%emt 0:10:10]} (10. g5 $16 Nfd7 11. Nh3) 10... Nxh5 {[%emt 0:00:06]} 11. O-O-O {[%emt 0:00:14]} Bd7 {[%emt 0:02:26]} 12. Nge2 {[%emt 0:00:53]} a6 {[%emt 0:04:07]} 13. Ng3 {[%emt 0:00:33]} Nf4 {[%emt 0:07:07]} 14. Qc2 {[%emt 0:25:12]} ({Better is} 14. h4 $16) 14... Qe8 {[%emt 0:15:17]} 15. Nge2 {[%emt 0:05:44]} b5 $14 {[%emt 0:08:32]} 16. b4 {[%emt 0:03:54]} Nb7 {[%emt 0:02:36]} 17. c5 {[%emt 0:00:04]} dxc5 {[%emt 0:06:26]} 18. bxc5 {[%emt 0:00:04]} b4 {[%emt 0:01:07]} 19. c6 {[%emt 0:00:11]} bxc3 {[%emt 0:00:07]} 20. cxd7 {[%emt 0:00:06]} Qxd7 {[%emt 0:00:08]} 21. Nxc3 {[%emt 0:00:10]} Qe7 {[%emt 0:01:29]} 22. Kb1 {[%emt 0:00:31]} Rfb8 {[%emt 0:02:05]} 23. Ka1 {[%emt 0:00:19]} Nd6 {[%emt 0:01:11]} 24. h4 {[%emt 0:10:42]} Bf8 {[%emt 0:04:18]} 25. Bc1 {[%emt 0:08:10]} Nb5 {[%emt 0:00:19]} 26. Nxb5 {[%emt 0:00:38]} axb5 {[%emt 0:01:19]} 27. Bb2 {[%emt 0:00:14]} Ra7 {[%emt 0:04:38]} 28. Kb1 {[%emt 0:01:54]} Rba8 {[%emt 0:00:52]} 29. Qc3 {[%emt 0:01:15]} Rxa2 {[%emt 0:04:58]} 30. Bxb5 {[%emt 0:01:44]} Bg7 {[%emt 0:08:48]} 31. Bc4 {[%emt 0:01:46]} R2a7 {[%emt 0:00:34]} 32. Qb3 {[%emt 0:01:12]} Qf8 {[%emt 0:01:25]} 33. Kc1 {[%emt 0:00:33]} Rb8 {[%emt 0:00:25]} 34. Qc3 {[%emt 0:00:09]} Rab7 {[%emt 0:01:19]} 35. Rh2 {[%emt 0:00:16]} Bh6 {[%emt 0:00:04]} 36. Kb1 {[%emt 0:00:12]} Bg7 {[%emt 0:00:15]} 37. Kc1 {[%emt 0:00:17]} Qe8 {[%emt 0:00:34]} 38. Rc2 {[%emt 0:00:38]} Bh6 {[%emt 0:00:56]} 39. Kb1 {[%emt 0:00:11]} Qa4 {[%emt 0:00:34]} 40. Rdd2 {[%emt 0:01:46]} Bg7 {[%emt 0:01:11]} 41. Rf2 {[%emt 0:01:57]} Kh7 {[%emt 0:00:26]} 42. Rh2 {[%emt 0:03:05]} f6 {[%emt 0:00:27]} 43. h5 {[%emt 0:00:14]} g5 {[%emt 0:02:33]} 44. h6 {[%emt 0:01:08]} Bf8 {[%emt 0:00:32]} 45. Kc1 {[%emt 0:00:20]} Bc5 {[%emt 0:00:57]} 46. Rhd2 {[%emt 0:01:04]} Bb4 {[%emt 0:00:27]} 47. Qe3 {[%emt 0:00:05]} Bxd2+ {[%emt 0:00:02]} 48. Qxd2 {[%emt 0:00:09]} Qa1+ {[%emt 0:00:42]} 0-1